Workbook

Sheet Summary
F1: LIBOR transition on the PM25 Libor Linked Assets
F2: The Paragon Mortgages (2010) Limited originated mortgages transitioned to a term SONIA basis on 1st July 2021. Please see the below link for further details.
A3: Paragon Mortgages (No.25) PLC | F3: libor-mortgages-transition-july-19 (paragonbankinggroup.co.uk)
A5: Information as at the Principal Determination Date | B5: 2018-07-31 | C5: 2018-10-31 | D5: 2019-01-31 | E5: 2019-04-30 | F5: 2019-07-31 | G5: 2019-10-31 | H5: 2020-01-31 | I5: 2020-04-30 | J5: 2020-07-31 | K5: 2020-10-30 | L5: 2021-01-29 | M5: 2021-04-30 | N5: 2021-07-30 | O5: 2021-10-29 | P5: 2022-01-31 | Q5: 2022-04-29 | R5: 2022-07-29 | S5: 2022-10-31 | T5: 2023-01-31 | U5: 2023-04-28
A6: Mortgage Asset Balance | B6: 702774.0462 | C6: 701782.3701 | D6: 701280.0602 | E6: 705089.9869 | F6: 680817.6655 | G6: 664041.9585 | H6: 647432.1336 | I6: 630760.3848 | J6: 616077.1285 | K6: 599696.4259 | L6: 582426.3713 | M6: 563838.0559 | N6: 543171.633 | O6: 527004.8495 | P6: 511625.6718 | Q6: 491843.855 | R6: 477835.0029 | S6: 437528.5119 | T6: 409795.3217 | U6: 0
A7: Mandatory Further Advance Prefunding Reserve | B7: 558 | C7: 508 | D7: 508 | E7: 473 | F7: 468 | G7: 0 | H7: 0 | I7: 0 | J7: 0 | K7: 0 | L7: 0 | M7: 0 | N7: 0 | O7: 0 | P7: 0 | Q7: 0 | R7: 0 | S7: 0 | T7: 0 | U7: 0
A8: Available Principal Cash | B8: 0 | C8: 0 | D8: 0 | E8: 0 | F8: 0 | G8: 0 | H8: 0 | I8: 0 | J8: 0 | K8: 6 | L8: 0 | M8: 0 | N8: 0 | O8: 0 | P8: 0 | Q8: 0 | R8: 0 | S8: 5 | T8: 1 | U8: 0
A9: Retained Principal Ledger Balance for Substitutions | B9: 2516 | C9: 3558 | D9: 4060 | E9: 285 | F9: 5770 | G9: 4720 | H9: 3384 | I9: 2716 | J9: 305 | K9: 0 | L9: 638 | M9: 2972 | N9: 8386 | O9: 9511 | P9: 10016 | Q9: 15758 | R9: 15595 | S9: 21876 | T9: 0 | U9: 0
A10: Total Assets | B10: =+B6+B7+B9 -> 705848.0462 | C10: 705848.3701 | D10: 705848.0602 | E10: 705847.9869 | F10: 687055.6655 | G10: 668761.9585 | H10: =+H6+H7+H9 -> 650816.1336 | I10: 633476.3848 | J10: =+J6+J7+J9 -> 616382.1285 | K10: =+K6+K7+K8+K9 -> 599702.4259 | L10: 583064.3713 | M10: 566810.0559 | N10: 551557.633 | O10: 536515.8495 | P10: 521641.6718 | Q10: =+Q6+Q7+Q8+Q9 -> 507601.855 | R10: 493430.0029 | S10: =+S6+S7+S8+S9 -> 459409.5119 | T10: =+T6+T7+T8+T9 -> 409796.3217 | U10: =+U6+U7+U8+U9 -> 0
A11: Total Notes (Class A, B, C, D and Z Notes) | B11: =SUM(B12:B16) -> 705848 | C11: 705848 | D11: 705848 | E11: 705848 | F11: 687056 | G11: 668762 | H11: =SUM(H12:H16) -> 650816 | I11: 633476 | J11: 616382 | K11: =SUM(K12:K16) -> 599702 | L11: 583064 | M11: 566810 | N11: 551558 | O11: 536516 | P11: 521642 | Q11: =SUM(Q12:Q16) -> 507602 | R11: =SUM(R12:R16) -> 493430 | S11: =SUM(S12:S16) -> 459410 | T11: =SUM(T12:T16) -> 409796 | U11: =SUM(U12:U16) -> 0
A12: Class A Notes | B12: 600000 | C12: 600000 | D12: 600000 | E12: 600000 | F12: 581208 | G12: 562914 | H12: 544968 | I12: 527628 | J12: 510534 | K12: 493854 | L12: 477216 | M12: 460962 | N12: 445710 | O12: 430668 | P12: 415794 | Q12: 401754 | R12: 387582 | S12: 353562 | T12: 303948 | U12: 0
A13: Class B Notes | B13: 33500 | C13: 33500 | D13: 33500 | E13: 33500 | F13: 33500 | G13: 33500 | H13: 33500 | I13: 33500 | J13: 33500 | K13: 33500 | L13: 33500 | M13: 33500 | N13: 33500 | O13: 33500 | P13: 33500 | Q13: 33500 | R13: 33500 | S13: 33500 | T13: 33500 | U13: 0
A14: Class C Notes | B14: 30000 | C14: 30000 | D14: 30000 | E14: 30000 | F14: 30000 | G14: 30000 | H14: 30000 | I14: 30000 | J14: 30000 | K14: 30000 | L14: 30000 | M14: 30000 | N14: 30000 | O14: 30000 | P14: 30000 | Q14: 30000 | R14: 30000 | S14: 30000 | T14: 30000 | U14: 0
A15: Class D Notes | B15: 24700 | C15: 24700 | D15: 24700 | E15: 24700 | F15: 24700 | G15: 24700 | H15: 24700 | I15: 24700 | J15: 24700 | K15: 24700 | L15: 24700 | M15: 24700 | N15: 24700 | O15: 24700 | P15: 24700 | Q15: 24700 | R15: 24700 | S15: 24700 | T15: 24700 | U15: 0
A16: Class Z Notes | B16: 17648 | C16: 17648 | D16: 17648 | E16: 17648 | F16: 17648 | G16: 17648 | H16: 17648 | I16: 17648 | J16: 17648 | K16: 17648 | L16: 17648 | M16: 17648 | N16: 17648 | O16: 17648 | P16: 17648 | Q16: 17648 | R16: 17648 | S16: 17648 | T16: 17648 | U16: 0
A17: Class A and B Liquidity Reserve Fund (1.50% of the outstanding Class A and B Notes) | B17: =SUM(B12:B13)*1.5% -> 9502.5 | C17: =SUM(B12:B13)*1.5% -> 9502.5 | D17: =SUM(C12:C13)*1.5% -> 9502.5 | E17: 9502.5 | F17: 9502.5 | G17: =SUM(F12:F13)*1.5% -> 9220.62 | H17: 8946.21 | I17: 8677.02 | J17: 8416.92 | K17: 8160.51 | L17: 7910.31 | M17: 7660.74 | N17: =SUM(M12:M13)*1.5% -> 7416.93 | O17: 7188.15 | P17: 6962.52 | Q17: =SUM(P12:P13)*1.5% -> 6739.41 | R17: 6528.81 | S17: =SUM(R12:R13)*1.5% -> 6316.23 | T17: =SUM(S12:S13)*1.5% -> 5805.93 | U17: 0
A18: General Reserve Fund (1.50% of the outstanding Class C and D Notes) | B18: =SUM(B14:B15)*1.5% -> 820.5 | C18: =SUM(B14:B15)*1.5% -> 820.5 | D18: =SUM(C14:C15)*1.5% -> 820.5 | E18: 820.5 | F18: 820.5 | G18: =SUM(F14:F15)*1.5% -> 820.5 | H18: 820.5 | I18: 820.5 | J18: 820.5 | K18: 820.5 | L18: 820.5 | M18: 820.5 | N18: 820.5 | O18: 820.5 | P18: 820.5 | Q18: 820.5 | R18: 820.5 | S18: 820.5 | T18: 820.5 | U18: 0
A19: Class B, C , D and Z Notes as a % of the Total Notes | B19: =SUM(B13:B16)/B11 -> 0.1499586313 | C19: 0.1499586313 | D19: 0.1499586313 | E19: 0.1499586313 | F19: 0.1540602222 | G19: =SUM(G13:G16)/G11 -> 0.1582745431 | H19: 0.1626389025 | I19: 0.1670907817 | J19: 0.1717246772 | K19: 0.1765009955 | L19: 0.1815375328 | M19: =SUM(M13:M16)/M11 -> 0.1867433532 | N19: 0.1919072881 | O19: =SUM(O13:O16)/O11 -> 0.1972876857 | P19: 0.202913109 | Q19: =SUM(Q13:Q16)/Q11 -> 0.2085255771 | R19: 0.2145147235 | S19: =SUM(S13:S16)/S11 -> 0.2303998607 | T19: =SUM(T13:T16)/T11 -> 0.2582943709 | U19: 0
A20: Retained Notes held by Paragon Finance PLC (Class A, B, C, D and Z Notes) | B20: 270548 | C20: 270548 | D20: 270548 | E20: 270548 | F20: 263501 | G20: 256641 | H20: 249911 | I20: 243409 | J20: 236998 | K20: 230743 | L20: 224504 | M20: 218834 | N20: 212664 | O20: 207024 | P20: 201446 | Q20: 196181 | R20: 190866 | S20: 178109 | T20: 159503 | U20: 0
A21: Lifetime Redemption Rate | B21: 0.0793 | C21: 0.071 | D21: 0.0853 | E21: 0.0892 | F21: 0.1057 | G21: 0.1193 | H21: 0.1275 | I21: 0.1459 | J21: 0.125 | K21: 0.1228 | L21: 0.1217 | M21: 0.1217 | N21: 0.123 | O21: 0.1224 | P21: 0.1217 | Q21: 0.1232 | R21: 0.1224 | S21: 0.133 | T21: 0.1384 | U21: 1
A22: Quarterly Redemption Rate | B22: 0.0248 | C22: 0.0156 | D22: 0.0302 | E22: 0.0262 | F22: 0.0461 | G22: 0.05 | H22: 0.0473 | I22: 0.037 | J22: 0.0232 | K22: 0.0266 | L22: 0.0288 | M22: 0.0319 | N22: 0.0365 | O22: 0.0293 | P22: 0.0287 | Q22: 0.0379 | R22: 0.0276 | S22: 0.0817 | T22: 0.0604 | U22: 1
A23: PM2010 Lifetime Redemption Rate | B23: 0.0793 | C23: 0.071 | D23: 0.0853 | E23: 0.0892 | F23: 0.1057 | G23: 0.1193 | H23: 0.1275 | I23: 0.1459 | J23: 0.125 | K23: 0.1228 | L23: 0.1217 | M23: 0.1217 | N23: 0.123 | O23: 0.1224 | P23: 0.1217 | Q23: 0.1232 | R23: 0.1224 | S23: 0.133 | T23: 0.1384 | U23: 1
A24: Paragon Bank Lifetime Redemption Rate | B24: 0 | C24: 0 | D24: 0 | E24: 0 | F24: 0 | G24: 0 | H24: 0 | I24: 0 | J24: 0 | K24: 0 | L24: 0 | M24: 0 | N24: 0 | O24: 0 | P24: 0 | Q24: 0 | R24: 0 | S24: 0 | T24: 0 | U24: 0
A25: Further Advances released in the quarter | B25: 0 | C25: 0 | D25: 0 | E25: 0 | F25: 0 | G25: 0 | H25: 0 | I25: 0 | J25: 0 | K25: 0 | L25: 0 | M25: 0 | N25: 0 | O25: 0 | P25: 0 | Q25: 0 | R25: 0 | S25: 0 | T25: 0 | U25: 0
A26: Opening PDL Balance | B26: 0 | C26: 0 | D26: 0 | E26: 0 | F26: 0 | G26: 0 | H26: 0 | I26: 0 | J26: 0 | K26: 0 | L26: 0 | M26: 0 | N26: 0 | O26: 0 | P26: 0 | Q26: 0 | R26: 0 | S26: 0 | T26: 0 | U26: 0
A27: Quarterly Losses | B27: =+B99+B130 -> 0 | C27: 2 | D27: -2 | E27: 0 | F27: 0 | G27: 0 | H27: =+H99+H130 -> 1 | I27: 0 | J27: =+J99+J130 -> 5 | K27: -2 | L27: =+L99+L130 -> 2 | M27: 14 | N27: =+N99+N130 -> 6 | O27: -8 | P27: =+P99+P130 -> -2 | Q27: =+Q99+Q130 -> -3 | R27: =+R99+R130 -> 0 | S27: =+S99+S130 -> 18 | T27: =+T99+T130 -> 68 | U27: =+U99+U130 -> -5
A28: Quarterly Loss Rate (annualised) | B28: =1-(1-B27/B6)^4 -> 0 | C28: =1-(1-C27/C6)^4 -> 1.139949669e-05 | D28: =IF(D27<0,0,1-(1-D27/D6)^4) -> 0 | E28: 0 | F28: 0 | G28: 0 | H28: 6.178239424e-06 | I28: 0 | J28: =IF(J27<0,0,1-(1-J27/J6)^4) -> 3.246307256e-05 | K28: 0 | L28: =IF(L27<0,0,1-(1-L27/L6)^4) -> 1.373557103e-05 | M28: 9.931559912e-05 | N28: =IF(N27<0,0,1-(1-N27/N6)^4) -> 4.418419681e-05 | O28: 0 | P28: =IF(P27<0,0,1-(1-P27/P6)^4) -> 0 | Q28: 0 | R28: =IF(R27<0,0,1-(1-R27/R6)^4) -> 0 | S28: 0.0001645505493 | T28: =IF(T27<0,0,1-(1-T27/T6)^4) -> 0.0006635807952 | U28: 0
A29: PDL Replenishment made during the quarter (-ve = recoveries) | B29: 0 | C29: 2 | D29: -2 | E29: 0 | F29: 0 | G29: 0 | H29: 1 | I29: 0 | J29: 5 | K29: -2 | L29: 2 | M29: 14 | N29: 6 | O29: -8 | P29: -2 | Q29: -3 | R29: 0 | S29: 18 | T29: 68 | U29: -5
A30: Outstanding PDL at end of the quarter | B30: =B26+B27-B29 -> 0 | C30: 0 | D30: 0 | E30: 0 | F30: 0 | G30: 0 | H30: =H26+H27-H29 -> 0 | I30: 0 | J30: =J26+J27-J29 -> 0 | K30: 0 | L30: =L26+L27-L29 -> 0 | M30: 0 | N30: =N26+N27-N29 -> 0 | O30: 0 | P30: =P26+P27-P29 -> 0 | Q30: 0 | R30: =R26+R27-R29 -> 0 | S30: 0 | T30: =T26+T27-T29 -> 0 | U30: 0
A31: Spread Trap repayment in the quarter | B31: N/A | C31: N/A | D31: N/A | E31: N/A | F31: N/A | G31: N/A | H31: N/A | I31: N/A | J31: N/A | K31: N/A | L31: N/A | M31: N/A | N31: N/A | O31: N/A | P31: N/A | Q31: N/A | R31: N/A | S31: N/A | T31: N/A | U31: N/A
A32: Spread % (WA Funding Rate less WA Interest Rate) | B32: 0.0221 | C32: 0.0219 | D32: 0.0218 | E32: 0.0218 | F32: 0.0225 | G32: 0.0235372321 | H32: 0.0243 | I32: 0.02428040478 | J32: 0.0278 | K32: 0.0297 | L32: 0.0301 | M32: 0.0298 | N32: 0.02955873251 | O32: 0.02955857931 | P32: 0.0294 | Q32: 0.02415216162 | R32: 0.01951699856 | S32: 0.01342574035 | T32: 0.002338476819 | U32: 0
A33: Total Income as a % of the Assets | B33: 0.01 | C33: 0.0096 | D33: 0.0101 | E33: 0.0101 | F33: 0.0105 | G33: 0.0110413125 | H33: 0.012 | I33: 0.01154550595 | J33: 0.0116 | K33: 0.0132 | L33: 0.0139 | M33: 0.0146 | N33: 0.0148974083 | O33: 0.01478901584 | P33: 0.0147 | Q33: 0.01601098071 | R33: 0.0179 | S33: 0.0212 | T33: 0.026 | U33: 0
A34: Quarterly surplus income to the Issuer | B34: 2937 | C34: 2995 | D34: 3458 | E34: 2950 | F34: 2952 | G34: 2853 | H34: 3209 | I34: 2994 | J34: 3674 | K34: 3227 | L34: 3298 | M34: 3564 | N34: 3628 | O34: 2753 | P34: 2285 | Q34: 2493 | R34: 2188 | S34: 1995 | T34: 3227 | U34: 15398
A35: Surplus Income as a % of the Assets | B35: =+B34/705848 -> 0.0041609525 | C35: =+C34/B10 -> 0.004243122887 | D35: 0.004899069186 | E35: 0.004179369706 | F35: 0.004182203611 | G35: 0.004152501964 | H35: 0.004798418868 | I35: 0.004600377657 | J35: 0.00579974264 | K35: 0.00523538865 | L35: 0.005499394129 | M35: 0.006112532638 | N35: 0.0064007333 | O35: 0.004991318831 | P35: 0.004258960853 | Q35: 0.004779142724 | R35: 0.004310464941 | S35: 0.004043126661 | T35: 0.007024234189 | U35: 0
A36: COVID19 Payment holiday cases as % of the mortgages | B36: N/A | C36: N/A | D36: N/A | E36: N/A | F36: N/A | G36: N/A | H36: N/A | I36: 0.2268217738 | J36: 0.06590180518 | K36: 0.0102858863 | L36: 0.008850883214 | M36: 0.002788159707 | N36: 0 | O36: 0 | P36: 0 | Q36: 0 | R36: 0 | S36: 0 | T36: 0 | U36: 0
A37: Losses as a % of the Assets | B37: =+B27/705848 -> 0 | C37: =+C27/B10 -> 2.833471043e-06 | D37: =+D27/C10 -> -2.833469743e-06 | E37: =+E27/D10 -> 0 | F37: =+F27/E10 -> 0 | G37: =+G27/F10 -> 0 | H37: 1.495300364e-06 | I37: 0 | J37: 7.892954055e-06 | K37: -3.244740409e-06 | L37: 3.334987343e-06 | M37: =+M27/L10 -> 2.401107097e-05 | N37: 1.058555673e-05 | O37: -1.450437728e-05 | P37: -3.72775567e-06 | Q37: -5.751074276e-06 | R37: 0 | S37: 3.64793383e-05 | T37: 0.0001480160907 | U37: -1.220118321e-05
A38: Number of Properties in Possession | B38: =+B97+B128 -> 0 | C38: 0 | D38: 0 | E38: =+E97+E128 -> 0 | F38: 0 | G38: =+G97+G128 -> 0 | H38: 0 | I38: =+I97+I128 -> 0 | J38: 0 | K38: =+K97+K128 -> 0 | L38: 0 | M38: =+M97+M128 -> 0 | N38: 0 | O38: =+O97+O128 -> 0 | P38: 0 | Q38: =+Q97+Q128 -> 0 | R38: 0 | S38: =+S97+S128 -> 0 | T38: 0 | U38: =+U97+U128 -> 0
A39: Appointment of a Receiver of Rent | B39: 0 | C39: 0 | D39: 1 | E39: =+E98+E129 -> 1 | F39: 1 | G39: =+G98+G129 -> 1 | H39: 1 | I39: 1 | J39: 1 | K39: 0 | L39: 0 | M39: =+M98+M129 -> 0 | N39: 0 | O39: =+O98+O129 -> 1 | P39: 2 | Q39: =+Q98+Q129 -> 3 | R39: 2 | S39: =+S98+S129 -> 2 | T39: 3 | U39: =+U98+U129 -> 0
A40: Average Number of months (Possessions) in Arrears at the Sale Date | B40: 0 | C40: 0 | D40: 0 | E40: 0 | F40: 0 | G40: 0 | H40: 0 | I40: 0 | J40: 0 | K40: 0 | L40: 0 | M40: 0 | N40: 0 | O40: 0 | P40: 0 | Q40: 0 | R40: 0 | S40: 0 | T40: 0 | U40: 0
A41: Average Number of months (RoR) in Arrears at the Sale Date | B41: 0 | C41: 0 | D41: 0 | E41: 0 | F41: 0 | G41: 0 | H41: 0 | I41: 0 | J41: 0 | K41: 1 | L41: 0 | M41: 0 | N41: 0 | O41: 0 | P41: 0 | Q41: 0 | R41: 0 | S41: 0 | T41: 0 | U41: 0
A42: Arrears excluding Receiver of Rent and Possession Cases
A43: Performing Loans | B43: 0.9995794286 | C43: 0.9997280407 | D43: 0.9993842935 | E43: 0.9988546938 | F43: 0.9984019045 | G43: 0.9980514613 | H43: 0.9974507294 | I43: 0.997237101 | J43: 0.9974763759 | K43: 0.9973362343 | L43: 0.9974187991 | M43: 0.9965856181 | N43: 0.9954050904 | O43: 0.9965865069 | P43: 0.995464795 | Q43: 0.9941549324 | R43: 0.9968367421 | S43: 0.9951686904 | T43: 0.9955959371 | U43: 0
A44: >1 to 2 months arrears | B44: 0.0001044314177 | C44: 0 | D44: 0.0006157065313 | E44: 0.000776844571 | F44: 0.0009368881828 | G44: 0.001270614488 | H44: 0.0008880915032 | I44: 0.001193599925 | J44: 0.0005508921402 | K44: 0.0001281244087 | L44: 0.000775625937 | M44: 0.00215290101 | N44: 0.002490428711 | O44: 0.001804820915 | P44: 0.001979185176 | Q44: 0.00427693367 | R44: 0.0004115477491 | S44: 0.003291216961 | T44: 0.00112166878 | U44: 0
A45: >2 to 3 months arrears | B45: 0.0003161400185 | C45: 0.0002719593112 | D45: 0 | E45: 0.0001090518241 | F45: 0.0006612073018 | G45: 0.0001157980875 | H45: 0.001084620285 | I45: 0.000603964288 | J45: 0.0004935401711 | K45: 0.001300369598 | L45: 0.0005843545841 | M45: 0 | N45: 0.0007950035932 | O45: 0.0008008965881 | P45: 0.001723825818 | Q45: 0.0006106967234 | R45: 0.001231682359 | S45: 0 | T45: 0.002835542212 | U45: 0
A46: >3 months arrears | B46: 0 | C46: 0 | D46: 0 | E46: 0.000259409808 | F46: 0 | G46: 0.0005621261443 | H46: 0.0005765588156 | I46: 0.0009653347505 | J46: 0.001479191761 | K46: 0.001235271644 | L46: 0.001221220338 | M46: 0.001261480885 | N46: 0.001309477312 | O46: 0.0008077755747 | P46: 0.0008321940417 | Q46: 0.0009574372155 | R46: 0.001520027776 | S46: 0.001540092643 | T46: 0.0004468519106 | U46: 0
A47: Total | B47: =SUM(B43:B46) -> 1 | C47: =SUM(C43:C46) -> 1 | D47: 1 | E47: 1 | F47: 1 | G47: 1 | H47: 1 | I47: 1 | J47: 1 | K47: 1 | L47: 1 | M47: 1 | N47: =SUM(N43:N46) -> 1 | O47: 1 | P47: 1 | Q47: 1 | R47: 1 | S47: 1 | T47: 1 | U47: =SUM(U43:U46) -> 0
A48: Total Value of Arrears (£000's) | B48: 5 | C48: 6.05072982 | D48: 17.96195877 | E48: 22.38522963 | F48: 22.30818107 | G48: 31.98213012 | H48: 51.65547292 | I48: 55.33156181 | J48: 24.03657588 | K48: 29.74711073 | L48: 29.77280979 | M48: 30.55285893 | N48: 40.944412 | O48: 33.7116211 | P48: 49.06164116 | Q48: 50.29695828 | R48: 42.87423153 | S48: 44.99535817 | T48: 70.18365877 | U48: 0
A49: Total Value of Arrears as a % of the Notes (£705,848,000) | B49: =+B48/705848 -> 7.083678072e-06 | C49: 8.572284429e-06 | D49: 2.54473467e-05 | E49: 3.171395205e-05 | F49: 3.160479462e-05 | G49: 4.531022277e-05 | H49: =+H48/705848 -> 7.318214817e-05 | I49: 7.839019423e-05 | J49: =+J48/705848 -> 3.40534731e-05 | K49: 4.21437912e-05 | L49: =+L48/705848 -> 4.218019998e-05 | M49: 4.328532337e-05 | N49: =+N48/705848 -> 5.800740669e-05 | O49: 4.776045423e-05 | P49: =+P48/705848 -> 6.950737434e-05 | Q49: 7.125749209e-05 | R49: =+R48/705848 -> 6.074145074e-05 | S49: 6.374652641e-05 | T49: =+T48/705848 -> 9.943168894e-05 | U49: 0
A51: Underlying Assets | B51: =+B5 -> 2018-07-31 | C51: 2018-10-31 | D51: 2019-01-31 | E51: 2019-04-30 | F51: 2019-07-31 | G51: 2019-10-31 | H51: =+H5 -> 2020-01-31 | I51: 2020-04-30 | J51: =+J5 -> 2020-07-31 | K51: 2020-10-30 | L51: =+L5 -> 2021-01-29 | M51: 2021-04-30 | N51: =+N5 -> 2021-07-30 | O51: 2021-10-29 | P51: =+P5 -> 2022-01-31 | Q51: 2022-04-29 | R51: =+R5 -> 2022-07-29 | S51: 2022-10-31 | T51: =+T5 -> 2023-01-31 | U51: 2023-04-28
A52: Weighted Average LTV | B52: 0.7026524001 | C52: 0.7026168271 | D52: 0.702145904 | E52: 0.7024747285 | F52: 0.7027568197 | G52: 0.7033951463 | H52: 0.702224337 | I52: 0.7028235852 | J52: 0.7042434779 | K52: 0.7042568131 | L52: 0.7038173821 | M52: 0.7040219588 | N52: 0.7031410829 | O52: 0.7029025544 | P52: 0.7020873542 | Q52: 0.7019262681 | R52: 0.7011007847 | S52: 0.6997200114 | T52: 0.6995964138 | U52: 0
A53: Weighted Average Nationwide Indexed LTV | B53: 0.6457465966 | C53: 0.6433833712 | D53: 0.647077148 | E53: 0.6541765525 | F53: 0.6445122581 | G53: 0.6436091462 | H53: 0.6475209156 | I53: 0.6399894464 | J53: 0.6312298025 | K53: 0.6160783658 | L53: 0.6037018141 | M53: 0.6006864472 | N53: 0.5722095916 | O53: 0.565350396 | P53: 0.5516065218 | Q53: 0.5376645069 | R53: 0.5179072024 | S53: 0.5119277172 | T53: 0.524332695 | U53: 0
A54: % of Fixed Rate Mortgages (reverting to SONIA plus a variable margin) - reverting to Libor prior to 1st July 2021 | B54: 0.3480992995 | C54: 0.3478540907 | D54: 0.2726571119 | E54: 0.2679891358 | F54: 0.2045231545 | G54: 0.1903795031 | H54: 0.1882382408 | I54: 0.1648395982 | J54: 0.1539262361 | K54: 0.1404520391 | L54: 0.127797318 | M54: 0.115870141 | N54: 0.1098727047 | O54: 0.1103542703 | P54: 0.09735911607 | Q54: 0.04156710005 | R54: 0.01239840304 | S54: 0 | T54: 0 | U54: 0
A55: % of Fixed Rate Mortgages (reverting to SVR) | B55: 0.5010271293 | C55: 0.515997634 | D55: 0.5772041591 | E55: 0.5928485526 | F55: 0.6551350147 | G55: 0.6594361549 | H55: 0.6414493982 | I55: 0.6653257675 | J55: 0.6973519974 | K55: 0.719445423 | L55: 0.713631463 | M55: 0.7262751394 | N55: 0.7111704066 | O55: 0.7179694336 | P55: 0.7310771815 | Q55: 0.7822282758 | R55: 0.823528745 | S55: 0.8277589623 | T55: 0.7861925176 | U55: 0
A56: % of Term SONIA Linked Mortgages (reverting to SONIA plus a variable margin) - Libor linked prior to 1st July 2021 | B56: 0.0337787627 | C56: 0.02275792777 | D56: 0.01268842408 | E56: 0.003027514274 | F56: 0.0005007948784 | G56: 0 | H56: 0 | I56: 0 | J56: 0 | K56: 0 | L56: 0 | M56: 0 | N56: 0 | O56: 0 | P56: 0 | Q56: 0 | R56: 0 | S56: 0 | T56: 0 | U56: 0
A57: % of Term SONIA Linked Mortgages plus a Variable Margin - Libor linked prior to 1st July 2021 | B57: 0.09339915417 | C57: 0.08990975344 | D57: 0.1116072044 | E57: 0.1084578817 | F57: 0.105368521 | G57: 0.095407243 | H57: 0.1109144846 | I57: 0.1145870003 | J57: 0.0976233845 | K57: 0.08902639734 | L57: 0.08777114263 | M57: 0.08538712739 | N57: 0.08265156744 | O57: 0.0785809396 | P57: 0.07858154666 | Q57: 0.08835037175 | R57: 0.08291763433 | S57: 0.07613750409 | T57: 0.06352009631 | U57: 0
A58: % of Non Reversionary Term SONIA Linked Mortgages - Libor linked prior to 1st July 2021 | B58: 0.02369565434 | C58: 0.02348059407 | D58: 0.02584310052 | E58: 0.02458589478 | F58: 0.02607214917 | G58: 0.02523343868 | H58: 0.02480067162 | I58: 0.02427744938 | J58: 0.02308754669 | K58: 0.02225674675 | L58: 0.02201807557 | M58: 0.0217171076 | N58: 0.0214588626 | O58: 0.022103842 | P58: 0.02247118875 | Q58: 0.02175184246 | R58: 0.0223750247 | S58: 0.0221333096 | T58: 0.02125299941 | U58: 0
A59: % of SVR Mortgages | B59: 0 | C59: 0 | D59: 0 | E59: 0.00309102092 | F59: 0.008400365737 | G59: 0.02954366033 | H59: 0.0345972048 | I59: 0.03097018454 | J59: 0.0280108353 | K59: 0.02881939377 | L59: 0.04878200075 | M59: 0.05075048461 | N59: 0.07484645865 | O59: 0.07099151445 | P59: 0.07051096698 | Q59: 0.06610240996 | R59: 0.05878019296 | S59: 0.07397022398 | T59: 0.1290343866 | U59: 0
A60: Weighted Average Loan Size | B60: 169017.3271 | C60: 169553.6048 | D60: 169186.9868 | E60: 169411.3376 | F60: 168310.9185 | G60: 167222.8553 | H60: 166434.9958 | I60: 166208.27 | J60: 166687.5348 | K60: 166814.0267 | L60: 167652.9566 | M60: 167709.1184 | N60: 168268.7835 | O60: 168587.6038 | P60: 168964.885 | Q60: 168555.1251 | R60: 168965.7012 | S60: 167123.1902 | T60: 166786.8627 | U60: 0
A61: Weighted Average Interest Rate | B61: 0.03766014819 | C61: 0.03781354423 | D61: 0.0383555209 | E61: 0.03818615637 | F61: 0.03830178399 | G61: 0.03899104264 | H61: 0.03998834982 | I61: 0.03970877372 | J61: 0.03860456967 | K61: 0.03835479575 | L61: 0.03849066651 | M61: 0.03836798036 | N61: 0.03846092572 | O61: 0.03834841402 | P61: 0.03857460573 | Q61: 0.03953268847 | R61: 0.04002168343 | S61: 0.04278119452 | T61: 0.04465623944 | U61: 0
A62: Weighted Average Maturity Date (years) | B62: 18.45717212 | C62: 18.21575485 | D62: 17.90917365 | E62: 17.67240744 | F62: 17.40688152 | G62: 17.12450755 | H62: 16.84454594 | I62: 16.62135089 | J62: 16.40262773 | K62: 16.20575482 | L62: 16.03791701 | M62: 15.82009324 | N62: 15.60547786 | O62: 15.40074068 | P62: 15.15603653 | Q62: 14.89430123 | R62: 14.67352565 | S62: 14.31105764 | T62: 14.05412093 | U62: 0
A63: Weighted Average Seasoning (months) | B63: 31.98078917 | C63: 34.89811919 | D63: 38.21333527 | E63: 41.16102887 | F63: 44.26508447 | G63: 47.23437126 | H63: 50.30026176 | I63: 53.22175415 | J63: 56.04666112 | K63: 58.85875846 | L63: 61.71218411 | M63: 64.55211765 | N63: 67.38792476 | O63: 70.19466031 | P63: 73.07669522 | Q63: 76.00660958 | R63: 78.89416508 | S63: 82.90328698 | T63: 86.39849182 | U63: 0
A64: % of Interest Only Mortgages (optional switching to repayment) | B64: 0.9178544248 | C64: 0.9183513777 | D64: 0.9193302295 | E64: 0.9201927253 | F64: 0.9196617028 | G64: 0.9175974232 | H64: 0.9178409097 | I64: 0.9200475299 | J64: 0.9210564143 | K64: 0.9204259756 | L64: 0.9220672218 | M64: 0.9231501255 | N64: 0.9226983249 | O64: 0.9230582687 | P64: 0.9242112582 | Q64: 0.9241345031 | R64: 0.9246072322 | S64: 0.9271367029 | T64: 0.9254305923 | U64: 0
A65: % of Repayment Mortgages | B65: 0.0821455752 | C65: 0.08164862228 | D65: 0.08066977048 | E65: 0.07980727469 | F65: 0.08033829722 | G65: 0.08240257684 | H65: 0.08215909031 | I65: 0.07995247013 | J65: 0.07894358574 | K65: 0.0795740244 | L65: 0.07793277819 | M65: 0.07684987454 | N65: 0.0773016751 | O65: 0.07694173131 | P65: 0.07578874183 | Q65: 0.07586549687 | R65: 0.0753927678 | S65: 0.0728632971 | T65: 0.07456940771 | U65: 0
A66: % of Mortgages in London | B66: 0.205283013 | C66: 0.2068242439 | D66: 0.206177056 | E66: 0.203117613 | F66: 0.2018819844 | G66: 0.2032717762 | H66: 0.2033969484 | I66: 0.2025801421 | J66: 0.2020667169 | K66: 0.2043903578 | L66: 0.2056933545 | M66: 0.2048753064 | N66: 0.2067265097 | O66: 0.2076796989 | P66: 0.2086464927 | Q66: 0.2055724078 | R66: 0.210053359 | S66: 0.2100638556 | T66: 0.2142174536 | U66: 0
A67: % of Mortgages in the South East | B67: 0.3603506242 | C67: 0.3597722775 | D67: 0.3611718088 | E67: 0.3604452392 | F67: 0.3575714941 | G67: 0.3542633964 | H67: 0.3506879565 | I67: 0.350743252 | J67: 0.3538371189 | K67: 0.3530538236 | L67: 0.3546818457 | M67: 0.3546395189 | N67: 0.352692302 | O67: 0.3523879138 | P67: 0.3508799822 | Q67: 0.3527858643 | R67: 0.3498255023 | S67: 0.3398340271 | T67: 0.3356290891 | U67: 0
A68: % of Owner Occupied Mortgages | B68: 0 | C68: 0 | D68: 0 | E68: 0 | F68: 0 | G68: 0 | H68: 0 | I68: 0 | J68: 0 | K68: 0 | L68: 0 | M68: 0 | N68: 0 | O68: 0 | P68: 0 | Q68: 0 | R68: 0 | S68: 0 | T68: 0 | U68: 0
A69: % of Investment Home Loans - Professional Landlords | B69: 0.625971534 | C69: 0.6306541752 | D69: 0.6342099187 | E69: 0.6421656544 | F69: 0.6459287375 | G69: 0.6440091572 | H69: 0.6483574473 | I69: 0.6495336717 | J69: 0.6517127208 | K69: 0.6552035364 | L69: 0.6608138683 | M69: 0.6699114937 | N69: 0.671959267 | O69: 0.6765162492 | P69: 0.6814503386 | Q69: 0.6906681922 | R69: 0.690713497 | S69: 0.7038790327 | T69: 0.7128290725 | U69: 0
A70: % of Investment Home Loans - Emerging Professional Landlords | B70: 0.374028466 | C70: 0.3693458248 | D70: 0.3657900813 | E70: 0.3578343456 | F70: 0.3540712625 | G70: 0.3559908428 | H70: 0.3516425527 | I70: 0.3504663283 | J70: 0.3482872792 | K70: 0.3447964636 | L70: 0.3391861317 | M70: 0.3300885063 | N70: 0.328040733 | O70: 0.3234837508 | P70: 0.3185496614 | Q70: 0.3093318078 | R70: 0.309286503 | S70: 0.2961209673 | T70: 0.2871709275 | U70: 0
A71: Weighted Average Interest Coverage Ratio (calculated at the origination date) | B71: 1.586448825 | C71: 1.586407852 | D71: 1.58641915 | E71: 1.591008261 | F71: 1.593222454 | G71: 1.592788111 | H71: 1.600449087 | I71: 1.601483332 | J71: 1.601233847 | K71: 1.598709474 | L71: 1.599751932 | M71: 1.602564593 | N71: 1.604000555 | O71: 1.604933078 | P71: 1.607665806 | Q71: 1.609153733 | R71: 1.606759681 | S71: 1.607788536 | T71: 1.609944613 | U71: 0
A72: % of Paragon Originated Assets | B72: 0.4871313848 | C72: 0.4896829986 | D72: 0.4864758328 | E72: 0.4930587937 | F72: 0.4906148933 | G72: 0.4894768594 | H72: 0.5017985161 | I72: 0.5063857184 | J72: 0.5077337841 | K72: 0.5093803569 | L72: 0.5152252962 | M72: 0.5239215402 | N72: 0.5285842544 | O72: 0.5344698312 | P72: 0.5410844074 | Q72: 0.5441363376 | R72: 0.5489482066 | S72: 0.5698238441 | T72: 0.585641243 | U72: 0
A73: % of Mortgage Trust Originated Assets | B73: 0.5128686152 | C73: 0.5103170014 | D73: 0.5135241672 | E73: 0.5069412063 | F73: 0.5093851067 | G73: 0.5105231406 | H73: 0.4982014839 | I73: 0.4936142816 | J73: 0.4922662159 | K73: 0.4906196431 | L73: 0.4847747038 | M73: 0.4760784598 | N73: 0.4714157456 | O73: 0.4655301688 | P73: 0.4589155926 | Q73: 0.4558636624 | R73: 0.4510517934 | S73: 0.4301761559 | T73: 0.414358757 | U73: 0
A74: % of Paragon Bank Originated Assets | B74: 0 | C74: 0 | D74: 0 | E74: 0 | F74: 0 | G74: 0 | H74: 0 | I74: 0 | J74: 0 | K74: 0 | L74: 0 | M74: 0 | N74: 0 | O74: 0 | P74: 0 | Q74: 0 | R74: 0 | S74: 0 | T74: 0 | U74: 0
A76: Underlying Assets - Paragon Mortgages 2010 Paragon Originated Assets | B76: =+B5 -> 2018-07-31 | C76: 2018-10-31 | D76: 2019-01-31 | E76: 2019-04-30 | F76: 2019-07-31 | G76: 2019-10-31 | H76: =+H5 -> 2020-01-31 | I76: 2020-04-30 | J76: =+J5 -> 2020-07-31 | K76: 2020-10-30 | L76: =+L5 -> 2021-01-29 | M76: 2021-04-30 | N76: =+N5 -> 2021-07-30 | O76: 2021-10-29 | P76: =+P5 -> 2022-01-31 | Q76: 2022-04-29 | R76: =+R5 -> 2022-07-29 | S76: 2022-10-31 | T76: =+T5 -> 2023-01-31 | U76: 2023-04-28
A77: Weighted Average LTV | B77: 0.6921664078 | C77: 0.6925609678 | D77: 0.6926070397 | E77: 0.6935388161 | F77: 0.6943576445 | G77: 0.6955791677 | H77: 0.6940686761 | I77: 0.6944280748 | J77: 0.6960905747 | K77: 0.6966129125 | L77: 0.6962591346 | M77: 0.697364947 | N77: 0.6965734927 | O77: 0.6967528672 | P77: 0.6962449862 | Q77: 0.6965899603 | R77: 0.6955320679 | S77: 0.6940940786 | T77: 0.69486981 | U77: 0
A78: Weighted Average Nationwide Indexed LTV | B78: 0.6417044867 | C78: 0.638598661 | D78: 0.6415451995 | E78: 0.6484677738 | F78: 0.6386917244 | G78: 0.6375062386 | H78: 0.6402789687 | I78: 0.6326142719 | J78: 0.6245811769 | K78: 0.6095407178 | L78: 0.5967969753 | M78: 0.5943405899 | N78: 0.5660996745 | O78: 0.558727222 | P78: 0.5450547018 | Q78: 0.5309729731 | R78: 0.5111805176 | S78: 0.5065817522 | T78: 0.5213500028 | U78: 0
A79: % of Fixed Rate Mortgages (reverting to SONIA plus a variable margin) - reverting to Libor prior to 1st July 2021 | B79: 0.4200536523 | C79: 0.4187381074 | D79: 0.2967268624 | E79: 0.3060283886 | F79: 0.2472299538 | G79: 0.2402732302 | H79: 0.229404422 | I79: 0.2168896142 | J79: 0.2042772684 | K79: 0.1816127446 | L79: 0.1702775913 | M79: 0.1663999555 | N79: 0.1518374921 | O79: 0.1516589933 | P79: 0.1232741324 | Q79: 0.04069264232 | R79: 0.009974314496 | S79: 0 | T79: 0 | U79: 0
A80: % of Fixed Rate Mortgages (reverting to SVR) | B80: 0.4244884564 | C80: 0.440829238 | D80: 0.5309262455 | E80: 0.5308305668 | F80: 0.5929141811 | G80: 0.6097025586 | H80: 0.5967916341 | I80: 0.6149040478 | J80: 0.6502157502 | K80: 0.6815700833 | L80: 0.6763384141 | M80: 0.6771139953 | N80: 0.6701384996 | O80: 0.686115109 | P80: 0.7143951689 | Q80: 0.7856637364 | R80: 0.8267680123 | S80: 0.8429875346 | T80: 0.8206104807 | U80: 0
A81: % of Term SONIA Linked Mortgages (reverting to SONIA plus a variable margin) - Libor linked prior to 1st July 2021 | B81: 0.05201980885 | C81: 0.03454005949 | D81: 0.01631271583 | E81: 0.004413408278 | F81: 0.001020749442 | G81: 0 | H81: 0 | I81: 0 | J81: 0 | K81: 0 | L81: 0 | M81: 0 | N81: 0 | O81: 0 | P81: 0 | Q81: 0 | R81: 0 | S81: 0 | T81: 0 | U81: 0
A82: % of Term SONIA Linked Mortgages plus a Variable Margin - Libor linked prior to 1st July 2021 | B82: 0.07488339505 | C82: 0.07776173053 | D82: 0.1225678671 | E82: 0.1219451881 | F82: 0.1082668636 | G82: 0.08821536356 | H82: 0.1054345289 | I82: 0.1043510405 | J82: 0.08431518508 | K82: 0.07872405375 | L82: 0.0771624172 | M82: 0.07358496885 | N82: 0.07281854671 | O82: 0.06886692017 | P82: 0.07255622446 | Q82: 0.08648624734 | R82: 0.07616278252 | S82: 0.06850068464 | T82: 0.05258813576 | U82: 0
A83: % of Non Reversionary Term SONIA Linked Mortgages - Libor linked prior to 1st July 2021 | B83: 0.02855468748 | C83: 0.02813086458 | D83: 0.03346630913 | E83: 0.03073364064 | F83: 0.03367538804 | G83: 0.03155972775 | H83: 0.03155257311 | I83: 0.03023358019 | J83: 0.02877341246 | K83: 0.0271917929 | L83: 0.02688862832 | M83: 0.02594653368 | N83: 0.02494484808 | O83: 0.02541089125 | P83: 0.02531469444 | Q83: 0.02355893101 | R83: 0.02401938556 | S83: 0.0212381443 | T83: 0.01828227807 | U83: 0
A84: % of SVR Mortgages | B84: 0 | C84: 0 | D84: 0 | E84: 0.006048807564 | F84: 0.01689286404 | G84: 0.03024911989 | H84: 0.03681684189 | I84: 0.03362171733 | J84: 0.03241838391 | K84: 0.0309013254 | L84: 0.04933294904 | M84: 0.05695454666 | N84: 0.08026061344 | O84: 0.06794808632 | P84: 0.0644597798 | Q84: 0.06359844298 | R84: 0.06307550514 | S84: 0.0672736365 | T84: 0.1085191055 | U84: 0
A85: Weighted Average Loan Size | B85: 183169.2318 | C85: 183967.2887 | D85: 184308.9148 | E85: 183360.1363 | F85: 182924.0341 | G85: 180875.4437 | H85: 180388.9417 | I85: 180252.8502 | J85: 179978.81 | K85: 178953.4736 | L85: 179045.8232 | M85: 179034.4865 | N85: 180346.7165 | O85: 180556.534 | P85: 181054.7243 | Q85: 179979.9018 | R85: 179908.5514 | S85: 180400.9975 | T85: 180990.2274 | U85: 0
A86: Weighted Average Interest Rate | B86: 0.03943921214 | C86: 0.03964698687 | D86: 0.0406649694 | E86: 0.04057974225 | F86: 0.04086467018 | G86: 0.04109309603 | H86: 0.04177883896 | I86: 0.04141311754 | J86: 0.04031412654 | K86: 0.04002818177 | L86: 0.03992358735 | M86: 0.03980943296 | N86: 0.03970458088 | O86: 0.0394142519 | P86: 0.03939049244 | Q86: 0.04031271781 | R86: 0.04075874914 | S86: 0.04268107639 | T86: 0.04375263204 | U86: 0
A87: Weighted Average Maturity Date (years) | B87: 18.57810954 | C87: 18.34192575 | D87: 18.07354347 | E87: 17.82947629 | F87: 17.52843436 | G87: 17.22383543 | H87: 16.91363091 | I87: 16.71147666 | J87: 16.49387308 | K87: 16.26801267 | L87: 16.12962418 | M87: 15.90491578 | N87: 15.68384334 | O87: 15.48233313 | P87: 15.24768378 | Q87: 14.94787687 | R87: 14.72469026 | S87: 14.38425309 | T87: 14.22877778 | U87: 0
A88: Weighted Average Seasoning (months) | B88: 29.72365885 | C88: 32.61588156 | D88: 36.09336973 | E88: 39.11861831 | F88: 42.40230786 | G88: 45.43063836 | H88: 48.7005354 | I88: 51.63767482 | J88: 54.4263464 | K88: 57.29193098 | L88: 60.16714148 | M88: 63.02499431 | N88: 66.06358698 | O88: 68.90986229 | P88: 71.92482383 | Q88: 75.01807664 | R88: 77.98901331 | S88: 81.49887697 | T88: 84.3405504 | U88: 0
A89: % of Interest Only Mortgages (optional switching to repayment) | B89: 0.9195573364 | C89: 0.9188351863 | D89: 0.9199056262 | E89: 0.9184528436 | F89: 0.9159215309 | G89: 0.9138394611 | H89: 0.9140702033 | I89: 0.9149344698 | J89: 0.9159663442 | K89: 0.9156464428 | L89: 0.9183087991 | M89: 0.9200853956 | N89: 0.9203123639 | O89: 0.9206706017 | P89: 0.9233093535 | Q89: 0.923380144 | R89: 0.9232967899 | S89: 0.92714875 | T89: 0.9275788775 | U89: 0
A90: % of Repayment Mortgages | B90: 0.08044266363 | C90: 0.08116481368 | D90: 0.08009437378 | E90: 0.08154715639 | F90: 0.08407846915 | G90: 0.0861605389 | H90: 0.08592979665 | I90: 0.08506553025 | J90: 0.08403365578 | K90: 0.08435355723 | L90: 0.08169120092 | M90: 0.07991460439 | N90: 0.07968763608 | O90: 0.07932939833 | P90: 0.07669064655 | Q90: 0.07661985603 | R90: 0.07670321011 | S90: 0.07285124997 | T90: 0.0724211225 | U90: 0
A91: % of Mortgages in London | B91: 0.1828433962 | C91: 0.1842294161 | D91: 0.1830085765 | E91: 0.1729990711 | F91: 0.1759687379 | G91: 0.177613456 | H91: 0.1766090826 | I91: 0.1772154316 | J91: 0.1753489592 | K91: 0.1759851301 | L91: 0.173954994 | M91: 0.1754502529 | N91: 0.1788386386 | O91: 0.1800401331 | P91: 0.1805384837 | Q91: 0.1766546546 | R91: 0.1793424901 | S91: 0.1851245775 | T91: 0.1886968806 | U91: 0
A92: % of Mortgages in the South East | B92: 0.3166579551 | C92: 0.3176989124 | D92: 0.3212353769 | E92: 0.3230996766 | F92: 0.3139819788 | G92: 0.3057422253 | H92: 0.3087716341 | I92: 0.3104277433 | J92: 0.3129360464 | K92: 0.3126199737 | L92: 0.3139147512 | M92: 0.3134454938 | N92: 0.3099100832 | O92: 0.3103045738 | P92: 0.3117432786 | Q92: 0.3126988199 | R92: 0.3116265055 | S92: 0.3069786605 | T92: 0.3091890958 | U92: 0
A93: % of Owner Occupied Mortgages | B93: 0 | C93: 0 | D93: 0 | E93: 0 | F93: 0 | G93: 0 | H93: 0 | I93: 0 | J93: 0 | K93: 0 | L93: 0 | M93: 0 | N93: 0 | O93: 0 | P93: 0 | Q93: 0 | R93: 0 | S93: 0 | T93: 0 | U93: 0
A94: % of Investment Home Loans - Professional Landlords | B94: 0.7681718708 | C94: 0.7749030474 | D94: 0.7807726103 | E94: 0.7866705312 | F94: 0.7920270388 | G94: 0.7917996101 | H94: 0.7938267466 | I94: 0.7895618517 | J94: 0.7888702624 | K94: 0.7884060111 | L94: 0.7903314533 | M94: 0.7956134615 | N94: 0.797745462 | O94: 0.8001222509 | P94: 0.7984719137 | Q94: 0.8061568946 | R94: 0.7996431256 | S94: 0.8015899588 | T94: 0.7991760553 | U94: 0
A95: % of Investment Home Loans - Emerging Professional Landlords | B95: 0.2318281292 | C95: 0.2250969526 | D95: 0.2192273897 | E95: 0.2133294688 | F95: 0.2079729612 | G95: 0.2082003899 | H95: 0.2061732534 | I95: 0.2104381483 | J95: 0.2111297376 | K95: 0.2115939889 | L95: 0.2096685467 | M95: 0.2043865385 | N95: 0.202254538 | O95: 0.1998777491 | P95: 0.2015280863 | Q95: 0.1938431054 | R95: 0.2003568744 | S95: 0.1984100412 | T95: 0.2008239447 | U95: 0
A96: Weighted Average Interest Coverage Ratio (calculated at the origination date) | B96: 1.720149999 | C96: 1.7183353 | D96: 1.720872709 | E96: 1.727987913 | F96: 1.730363881 | G96: 1.72867614 | H96: 1.730558928 | I96: 1.728445076 | J96: 1.727419837 | K96: 1.721115462 | L96: 1.720448217 | M96: 1.719946109 | N96: 1.71762131 | O96: 1.715883242 | P96: 1.715737651 | Q96: 1.714659449 | R96: 1.71120094 | S96: 1.706771472 | T96: 1.708080797 | U96: 0
A97: Number of Properties in Possession | B97: 0 | C97: 0 | D97: 0 | E97: 0 | F97: 0 | G97: 0 | H97: 0 | I97: 0 | J97: 0 | K97: 0 | L97: 0 | M97: 0 | N97: 0 | O97: 0 | P97: 0 | Q97: 0 | R97: 0 | S97: 0 | T97: 0 | U97: 0
A98: Appointment of a Receiver of Rent | B98: 0 | C98: 0 | D98: 1 | E98: 1 | F98: 1 | G98: 1 | H98: 1 | I98: 1 | J98: 1 | K98: 0 | L98: 0 | M98: 0 | N98: 0 | O98: 0 | P98: 0 | Q98: 1 | R98: 1 | S98: 1 | T98: 2 | U98: 0
A99: PML Quarterly Losses | B99: 0 | C99: 0 | D99: 0 | E99: 0 | F99: 0 | G99: 0 | H99: 0 | I99: 0 | J99: 0 | K99: 0 | L99: 0 | M99: 6 | N99: 4 | O99: -4 | P99: -1 | Q99: -1 | R99: 0 | S99: 0 | T99: 79 | U99: 1
A100: Arrears excluding Receiver of Rent and Possession Cases
A101: Performing Loans | B101: 0.9993510169 | C101: 0.9994446217 | D101: 1 | E101: 0.9994734848 | F101: 1 | G101: 0.998951251 | H101: 0.9988372737 | I101: 0.9972808273 | J101: 0.9987923537 | K101: 0.9984285958 | L101: 0.997266183 | M101: 0.9964367421 | N101: 0.9971426967 | O101: 0.9981015861 | P101: 0.9980684259 | Q101: 0.9979994168 | R101: 0.9979587941 | S101: 0.9975189126 | T101: 0.9951141832 | U101: 0
A102: >1 to 2 months arrears | B102: 0 | C102: 0 | D102: 0 | E102: 0 | F102: 0 | G102: 0.001048749007 | H102: 0 | I102: 0.001536493425 | J102: 0 | K102: 0 | L102: 0 | M102: 0.00193830447 | N102: 0 | O102: 0 | P102: 0 | Q102: 0.001273342947 | R102: 0 | S102: 0.001700361808 | T102: 0.0003133211815 | U102: 0
A103: >2 to 3 months arrears | B103: 0.0006489830638 | C103: 0.0005553782999 | D103: 0 | E103: 0 | F103: 0 | G103: 0 | H103: 0.001162726344 | I103: 0 | J103: 0 | K103: 0 | L103: 0.001134172931 | M103: 0 | N103: 0.00118540344 | O103: 0.001208313642 | P103: 0.001229419619 | Q103: 0 | R103: 0.001299198727 | S103: 0 | T103: 0.003809206484 | U103: 0
A104: >3 months arrears | B104: 0 | C104: 0 | D104: 0 | E104: 0.0005265151989 | F104: 0 | G104: 0 | H104: 0 | I104: 0.001182679239 | J104: 0.00120764631 | K104: 0.001571404214 | L104: 0.001599644064 | M104: 0.001624953465 | N104: 0.001671899871 | O104: 0.0006901002486 | P104: 0.0007021544372 | Q104: 0.0007272402247 | R104: 0.0007420071526 | S104: 0.0007807255938 | T104: 0.0007632891387 | U104: 0
A105: Total | B105: =SUM(B101:B104) -> 1 | C105: =SUM(C101:C104) -> 1 | D105: =SUM(D101:D104) -> 1 | E105: 1 | F105: 1 | G105: 1 | H105: 1 | I105: 1 | J105: 1 | K105: 1 | L105: 1 | M105: 1 | N105: 1 | O105: 1 | P105: 1 | Q105: 1 | R105: 1 | S105: 1 | T105: 1 | U105: =SUM(U101:U104) -> 0
A107: Underlying Assets - Paragon Mortgages 2010 Mortgage Trust Originated Assets | B107: =+B76 -> 2018-07-31 | C107: 2018-10-31 | D107: 2019-01-31 | E107: 2019-04-30 | F107: 2019-07-31 | G107: 2019-10-31 | H107: =+H76 -> 2020-01-31 | I107: 2020-04-30 | J107: =+J76 -> 2020-07-31 | K107: 2020-10-30 | L107: =+L76 -> 2021-01-29 | M107: 2021-04-30 | N107: =+N76 -> 2021-07-30 | O107: 2021-10-29 | P107: =+P76 -> 2022-01-31 | Q107: 2022-04-29 | R107: =+R76 -> 2022-07-29 | S107: 2022-10-31 | T107: =+T76 -> 2023-01-31 | U107: 2023-04-28
A108: Weighted Average LTV | B108: 0.7126121749 | C108: 0.7122660908 | D108: 0.7111823374 | E108: 0.7111659339 | F108: 0.7108464956 | G108: 0.7108889117 | H108: 0.7104388821 | I108: 0.7114363154 | J108: 0.7126525547 | K108: 0.7121930075 | L108: 0.7118503925 | M108: 0.711347961 | N108: 0.7105051236 | O108: 0.7099629396 | P108: 0.708975798 | Q108: 0.7082958896 | R108: 0.7078781373 | S108: 0.7071722856 | T108: 0.7062768426 | U108: 0
A109: Weighted Average Nationwide Indexed LTV | B109: 0.6495858617 | C109: 0.647974618 | D109: 0.6523177178 | E109: 0.6597289981 | F109: 0.6501183124 | G109: 0.6494604618 | H109: 0.6548151496 | I109: 0.6475554412 | J109: 0.6380873355 | K109: 0.6228660058 | L109: 0.6110403729 | M109: 0.6076700259 | N109: 0.5790604573 | O109: 0.5729543858 | P109: 0.559331445 | Q109: 0.5456517782 | R109: 0.5260938489 | S109: 0.5190091379 | T109: 0.5285483354 | U109: 0
A110: % of Fixed Rate Mortgages (reverting to SONIA plus a variable margin) - reverting to Libor prior to 1st July 2021 | B110: 0.2797558243 | C110: 0.2798361769 | D110: 0.2498551628 | E110: 0.2309915749 | F110: 0.1633900481 | G110: 0.1425426413 | H110: 0.1467748382 | I110: 0.1114428758 | J110: 0.1019931167 | K110: 0.09771739703 | L110: 0.08264869286 | M110: 0.06026237779 | N110: 0.06281885454 | O110: 0.06293279315 | P110: 0.06680401733 | Q110: 0.04261088631 | R110: 0.01534861646 | S110: 0 | T110: 0 | U110: 0
A111: % of Fixed Rate Mortgages (reverting to SVR) | B111: 0.5737248702 | C111: 0.5881266938 | D111: 0.6210445234 | E111: 0.6531681969 | F111: 0.7150630873 | G111: 0.7071194872 | H111: 0.6864295929 | I111: 0.7170520642 | J111: 0.7459693196 | K111: 0.7587690708 | L111: 0.753267034 | M111: 0.7803766889 | N111: 0.7571782461 | O111: 0.7545410172 | P111: 0.7507461077 | Q111: 0.7781275784 | R111: 0.8195864261 | S111: 0.8075867528 | T111: 0.7375472837 | U111: 0
A112: % of Term SONIA Linked Mortgages (reverting to SONIA plus a variable margin) - Libor linked prior to 1st July 2021 | B112: 0.01645310501 | C112: 0.01145219119 | D112: 0.009255030945 | E112: 0.001679572506 | F112: 0 | G112: 0 | H112: 0 | I112: 0 | J112: 0 | K112: 0 | L112: 0 | M112: 0 | N112: 0 | O112: 0 | P112: 0 | Q112: 0 | R112: 0 | S112: 0 | T112: 0 | U112: 0
A113: % of Term SONIA Linked Mortgages plus a Variable Margin - Libor linked prior to 1st July 2021 | B113: 0.1109857389 | C113: 0.1015665869 | D113: 0.1012238615 | E113: 0.09533992053 | F113: 0.1025769788 | G113: 0.1023026377 | H113: 0.1164340058 | I113: 0.1250877984 | J113: 0.1113497428 | K113: 0.09972269035 | L113: 0.09904624354 | M113: 0.09837533333 | N113: 0.09367703696 | O113: 0.08973349356 | P113: 0.08568570252 | Q113: 0.09057546208 | R113: 0.09113856116 | S113: 0.08625345717 | T113: 0.07897097519 | U113: 0
A114: % of Non Reversionary Term SONIA Linked Mortgages - Libor linked prior to 1st July 2021 | B114: 0.01908046154 | C114: 0.01901835119 | D114: 0.0186214214 | E114: 0.01860650286 | F114: 0.01874908028 | G114: 0.01916795043 | H114: 0.01800002116 | I114: 0.01816721373 | J114: 0.01722302451 | K114: 0.01713299029 | L114: 0.01684158438 | M114: 0.01706264912 | N114: 0.01755013223 | O114: 0.01830705681 | P114: 0.0191185535 | Q114: 0.01959483232 | R114: 0.02037377127 | S114: 0.02331907157 | T114: 0.02545172071 | U114: 0
A115: % of SVR Mortgages | B115: 0 | C115: 0 | D115: 0 | E115: 0.0002142322575 | F115: 0.0002208055303 | G115: 0.0288672833 | H115: 0.03236154185 | I115: 0.02825004782 | J115: 0.02346479647 | K115: 0.02665785154 | L115: 0.04819644524 | M115: 0.04392295088 | N115: 0.0687757302 | O115: 0.07448563927 | P115: 0.07764561894 | Q115: 0.06909124092 | R115: 0.05355262495 | S115: 0.08284071847 | T115: 0.1580300204 | U115: 0
A116: Weighted Average Loan Size | B116: 157462.1022 | C116: 157697.6991 | D116: 156985.2916 | E116: 157740.145 | F116: 156285.8852 | G116: 155937.8041 | H116: 154404.8108 | I116: 153906.2453 | J116: 154889.6613 | K116: 155838.3721 | L116: 157033.1322 | M116: 156793.8979 | N116: 156515.6848 | O116: 156664.5316 | P116: 156633.0876 | Q116: 156683.2572 | R116: 157319.9525 | S116: 152276.9687 | T116: 150134.642 | U116: 0
A117: Weighted Average Interest Rate | B117: 0.03597036283 | C117: 0.03605423446 | D117: 0.03616771562 | E117: 0.03585811803 | F117: 0.03583333699 | G117: 0.03697564626 | H117: 0.03818493328 | I117: 0.03796033287 | J117: 0.03684129657 | K117: 0.03661742144 | L117: 0.03696773832 | M117: 0.03678167027 | N117: 0.03706645272 | O117: 0.03712473782 | P117: 0.03761263453 | Q117: 0.03860161556 | R117: 0.03912464475 | S117: 0.04291381389 | T117: 0.04593336888 | U117: 0
A118: Weighted Average Maturity Date (years) | B118: 18.3423037 | C118: 18.0946855 | D118: 17.75346151 | E118: 17.51963988 | F118: 17.28980774 | G118: 17.02927447 | H118: 16.77496217 | I118: 16.52889327 | J118: 16.30851535 | K118: 16.14111631 | L118: 15.94044935 | M118: 15.72674653 | N118: 15.517609 | O118: 15.30706532 | P118: 15.04797984 | Q118: 14.83035128 | R118: 14.61125627 | S118: 14.21410082 | T118: 13.80726661 | U118: 0
A119: Weighted Average Seasoning (months) | B119: 34.12465017 | C119: 37.08807752 | D119: 40.22163803 | E119: 43.14750872 | F119: 46.05922007 | G119: 48.96374539 | H119: 51.9115382 | I119: 54.84681887 | J119: 57.71788798 | K119: 60.48549957 | L119: 63.35427691 | M119: 66.23270788 | N119: 68.87286477 | O119: 71.66972213 | P119: 74.43480913 | Q119: 77.18656037 | R119: 79.99577125 | S119: 84.76360931 | T119: 89.30711955 | U119: 0
A120: % of Interest Only Mortgages (optional switching to repayment) | B120: 0.9162369703 | C120: 0.9178871313 | D120: 0.9187851401 | E120: 0.9218849609 | F120: 0.923264054 | G120: 0.9212004635 | H120: 0.9216388407 | I120: 0.9252928818 | J120: 0.9263064201 | K120: 0.9253882721 | L120: 0.9260617257 | M120: 0.9265228426 | N120: 0.925373631 | O120: 0.9257995217 | P120: 0.9252746489 | Q120: 0.9250349351 | R120: 0.9262020933 | S120: 0.9271207449 | T120: 0.9223942756 | U120: 0
A121: % of Repayment Mortgages | B121: 0.08376302973 | C121: 0.08211286872 | D121: 0.08121485989 | E121: 0.07811503906 | F121: 0.07673594601 | G121: 0.0787995365 | H121: 0.07836115934 | I121: 0.0747071182 | J121: 0.07369357988 | K121: 0.0746117279 | L121: 0.07393827426 | M121: 0.0734771574 | N121: 0.07462636903 | O121: 0.07420047826 | P121: 0.07472535111 | Q121: 0.07496506486 | R121: 0.07379790672 | S121: 0.07287925508 | T121: 0.07760572444 | U121: 0
A122: % of Mortgages in London | B122: 0.2265965449 | C122: 0.2285054793 | D122: 0.2281252058 | E122: 0.2324113688 | F122: 0.2268403598 | G122: 0.2278723339 | H122: 0.2303782235 | I122: 0.2286011217 | J122: 0.229623977 | K122: 0.2338817677 | L122: 0.2394253254 | M122: 0.2372574043 | N122: 0.2379963383 | O122: 0.2394123663 | P122: 0.2417872392 | Q122: 0.2400897461 | R122: 0.2474297237 | S122: 0.2430991484 | T122: 0.2502874047 | U122: 0
A123: % of Mortgages in the South East | B123: 0.4018506687 | C123: 0.4001444609 | D123: 0.3990047098 | E123: 0.3967681063 | F123: 0.3995547896 | G123: 0.4007842856 | H123: 0.3929069163 | I123: 0.3921018565 | J123: 0.3960233499 | K123: 0.3950338161 | L123: 0.3980096807 | M123: 0.3999733007 | N123: 0.4006627133 | O123: 0.4007033123 | P123: 0.3970241107 | Q123: 0.4006352967 | R123: 0.3963152205 | S123: 0.3833552009 | T123: 0.372998519 | U123: 0
A124: % of Owner Occupied Mortgages | B124: 0 | C124: 0 | D124: 0 | E124: 0 | F124: 0 | G124: 0 | H124: 0 | I124: 0 | J124: 0 | K124: 0 | L124: 0 | M124: 0 | N124: 0 | O124: 0 | P124: 0 | Q124: 0 | R124: 0 | S124: 0 | T124: 0 | U124: 0
A125: % of Investment Home Loans - Professional Landlords | B125: 0.4909072214 | C125: 0.492237818 | D125: 0.4953669741 | E125: 0.5016179946 | F125: 0.5052139785 | G125: 0.5023113555 | H125: 0.5018378546 | I125: 0.5058824987 | J125: 0.5102455323 | K125: 0.5169075569 | L125: 0.5231607779 | M125: 0.5315772187 | N125: 0.5309190013 | O125: 0.5346056206 | P125: 0.543476056 | Q125: 0.5528164512 | R125: 0.55814175 | S125: 0.5744482989 | T125: 0.5907890445 | U125: 0
A126: % of Investment Home Loans - Emerging Professional Landlords | B126: 0.5090927786 | C126: 0.507762182 | D126: 0.5046330259 | E126: 0.4983820054 | F126: 0.4947860215 | G126: 0.4976886445 | H126: 0.4981621454 | I126: 0.4941175013 | J126: 0.4897544677 | K126: 0.4830924431 | L126: 0.4768392221 | M126: 0.4684227813 | N126: 0.4690809987 | O126: 0.4653943794 | P126: 0.456523944 | Q126: 0.4471835488 | R126: 0.44185825 | S126: 0.4255517011 | T126: 0.4092109555 | U126: 0
A127: Weighted Average Interest Coverage Ratio (calculated at the origination date) | B127: 1.459457163 | C127: 1.459814719 | D127: 1.459047527 | E127: 1.45777975 | F127: 1.461134519 | G127: 1.462502056 | H127: 1.469399848 | I127: 1.471236666 | J127: 1.471082949 | K127: 1.471622827 | L127: 1.471474242 | M127: 1.473386927 | N127: 1.476601029 | O127: 1.477552471 | P127: 1.480243703 | Q127: 1.483218066 | R127: 1.47965046 | S127: 1.476672862 | T127: 1.471242109 | U127: 0
A128: Number of Properties in Possession | B128: 0 | C128: 0 | D128: 0 | E128: 0 | F128: 0 | G128: 0 | H128: 0 | I128: 0 | J128: 0 | K128: 0 | L128: 0 | M128: 0 | N128: 0 | O128: 0 | P128: 0 | Q128: 0 | R128: 0 | S128: 0 | T128: 0 | U128: 0
A129: Appointment of a Receiver of Rent | B129: 0 | C129: 0 | D129: 0 | E129: 0 | F129: 0 | G129: 0 | H129: 0 | I129: 0 | J129: 0 | K129: 0 | L129: 0 | M129: 0 | N129: 0 | O129: 1 | P129: 2 | Q129: 2 | R129: 1 | S129: 1 | T129: 1 | U129: 0
A130: MTL Quarterly Losses | B130: 0 | C130: 2 | D130: -2 | E130: 0 | F130: 0 | G130: 0 | H130: 1 | I130: 0 | J130: 5 | K130: -2 | L130: 2 | M130: 8 | N130: 2 | O130: -4 | P130: -1 | Q130: -2 | R130: 0 | S130: 18 | T130: -11 | U130: -6
A131: Arrears excluding Receiver of Rent and Possession Cases
A132: Performing Loans | B132: 0.9997963778 | C132: 1 | D132: 0.9988018891 | E132: 0.9982537308 | F132: 0.9968650463 | G132: 0.9971901185 | H132: 0.9960563659 | I132: 0.997192315 | J132: 0.9961212092 | K132: 0.9962021023 | L132: 0.9975810017 | M132: 0.9967494553 | N132: 0.9934567649 | O132: 0.9948464131 | P132: 0.9923927186 | Q132: 0.9895684104 | R132: 0.9954724257 | S132: 0.9920597223 | T132: 0.9962762384 | U132: 0
A133: >1 to 2 months arrears | B133: 0.0002036221649 | C133: 0 | D133: 0.0011981109 | E133: 0.001531307445 | F133: 0.001837875833 | G133: 0.001482999912 | H133: 0.001781191293 | I133: 0.0008423961256 | J133: 0.001118189486 | K133: 0.0002611481431 | L133: 0.001599971968 | M133: 0.002389063237 | N133: 0.005282871296 | O133: 0.003877687965 | P133: 0.004314465429 | Q133: 0.007860258041 | R133: 0.0009119535479 | S133: 0.005395663906 | T133: 0.00226316427 | U133: 0
A134: >2 to 3 months arrears | B134: 0 | C134: 0 | D134: 0 | E134: 0.0002149617523 | F134: 0.001297077862 | G134: 0.0002266482556 | H134: 0.001006073757 | I134: 0.001222566136 | J134: 0.001001777644 | K134: 0.002650463788 | L134: 0 | M134: 0 | N134: 0.0003572600224 | O134: 0.0003329712784 | P134: 0.002307185601 | Q134: 0.001339266177 | R134: 0.001149588405 | S134: 0 | T134: 0.001460597353 | U134: 0
A135: >3 months arrears | B135: 0 | C135: 0 | D135: 0 | E135: 0 | F135: 0 | G135: 0.001100233284 | H135: 0.001156369066 | I135: 0.0007427227441 | J135: 0.001758823658 | K135: 0.0008862857632 | L135: 0.0008190263395 | M135: 0.0008614814532 | N135: 0.0009031038299 | O135: 0.0009429276577 | P135: 0.0009856303773 | Q135: 0.00123206534 | R135: 0.002466032298 | S135: 0.002544613804 | T135: 0 | U135: 0
A136: Total | B136: =SUM(B132:B135) -> 1 | C136: =SUM(C132:C135) -> 1 | D136: =SUM(D132:D135) -> 1 | E136: 1 | F136: 1 | G136: 1 | H136: 1 | I136: 1 | J136: 1 | K136: 1 | L136: 1 | M136: 1 | N136: 1 | O136: 1 | P136: 1 | Q136: 1 | R136: 1 | S136: 1 | T136: 1 | U136: =SUM(U132:U135) -> 0
A138: Underlying Assets - Paragon Bank Originated Assets | B138: =+B107 -> 2018-07-31 | C138: 2018-10-31 | D138: 2019-01-31 | E138: 2019-04-30 | F138: 2019-07-31 | G138: 2019-10-31 | H138: =+H107 -> 2020-01-31 | I138: 2020-04-30 | J138: =+J107 -> 2020-07-31 | K138: 2020-10-30 | L138: =+L107 -> 2021-01-29 | M138: 2021-04-30 | N138: =+N107 -> 2021-07-30 | O138: 2021-10-29 | P138: =+P107 -> 2022-01-31 | Q138: 2022-04-29 | R138: =+R107 -> 2022-07-29 | S138: 2022-10-31 | T138: =+T107 -> 2023-01-31 | U138: 2023-04-28
A139: Weighted Average LTV | B139: 0 | C139: 0 | D139: 0 | E139: 0 | F139: 0 | G139: 0 | H139: 0 | I139: 0 | J139: 0 | K139: 0 | L139: 0 | M139: 0 | N139: 0 | O139: 0 | P139: 0 | Q139: 0 | R139: 0 | S139: 0 | T139: 0 | U139: 0
A140: Weighted Average Nationwide Indexed LTV | B140: 0 | C140: 0 | D140: 0 | E140: 0 | F140: 0 | G140: 0 | H140: 0 | I140: 0 | J140: 0 | K140: 0 | L140: 0 | M140: 0 | N140: 0 | O140: 0 | P140: 0 | Q140: 0 | R140: 0 | S140: 0 | T140: 0 | U140: 0
A141: % of Fixed Rate Mortgages (reverting to SONIA plus a variable margin) - reverting to Libor prior to 1st July 2021 | B141: 0 | C141: 0 | D141: 0 | E141: 0 | F141: 0 | G141: 0 | H141: 0 | I141: 0 | J141: 0 | K141: 0 | L141: 0 | M141: 0 | N141: 0 | O141: 0 | P141: 0 | Q141: 0 | R141: 0 | S141: 0 | T141: 0 | U141: 0
A142: % of Fixed Rate Mortgages (reverting to SVR) | B142: 0 | C142: 0 | D142: 0 | E142: 0 | F142: 0 | G142: 0 | H142: 0 | I142: 0 | J142: 0 | K142: 0 | L142: 0 | M142: 0 | N142: 0 | O142: 0 | P142: 0 | Q142: 0 | R142: 0 | S142: 0 | T142: 0 | U142: 0
A143: % of Term SONIA Linked Mortgages (reverting to SONIA plus a variable margin) - Libor linked prior to 1st July 2021 | B143: 0 | C143: 0 | D143: 0 | E143: 0 | F143: 0 | G143: 0 | H143: 0 | I143: 0 | J143: 0 | K143: 0 | L143: 0 | M143: 0 | N143: 0 | O143: 0 | P143: 0 | Q143: 0 | R143: 0 | S143: 0 | T143: 0 | U143: 0
A144: % of Term SONIA Linked Mortgages plus a Variable Margin - Libor linked prior to 1st July 2021 | B144: 0 | C144: 0 | D144: 0 | E144: 0 | F144: 0 | G144: 0 | H144: 0 | I144: 0 | J144: 0 | K144: 0 | L144: 0 | M144: 0 | N144: 0 | O144: 0 | P144: 0 | Q144: 0 | R144: 0 | S144: 0 | T144: 0 | U144: 0
A145: % of Non Reversionary Term SONIA Linked Mortgages - Libor linked prior to 1st July 2021 | B145: 0 | C145: 0 | D145: 0 | E145: 0 | F145: 0 | G145: 0 | H145: 0 | I145: 0 | J145: 0 | K145: 0 | L145: 0 | M145: 0 | N145: 0 | O145: 0 | P145: 0 | Q145: 0 | R145: 0 | S145: 0 | T145: 0 | U145: 0
A146: Weighted Average Loan Size | B146: 0 | C146: 0 | D146: 0 | E146: 0 | F146: 0 | G146: 0 | H146: 0 | I146: 0 | J146: 0 | K146: 0 | L146: 0 | M146: 0 | N146: 0 | O146: 0 | P146: 0 | Q146: 0 | R146: 0 | S146: 0 | T146: 0 | U146: 0
A147: Weighted Average Interest Rate | B147: 0 | C147: 0 | D147: 0 | E147: 0 | F147: 0 | G147: 0 | H147: 0 | I147: 0 | J147: 0 | K147: 0 | L147: 0 | M147: 0 | N147: 0 | O147: 0 | P147: 0 | Q147: 0 | R147: 0 | S147: 0 | T147: 0 | U147: 0
A148: Weighted Average Maturity Date (years) | B148: 0 | C148: 0 | D148: 0 | E148: 0 | F148: 0 | G148: 0 | H148: 0 | I148: 0 | J148: 0 | K148: 0 | L148: 0 | M148: 0 | N148: 0 | O148: 0 | P148: 0 | Q148: 0 | R148: 0 | S148: 0 | T148: 0 | U148: 0
A149: Weighted Average Seasoning (months) | B149: 0 | C149: 0 | D149: 0 | E149: 0 | F149: 0 | G149: 0 | H149: 0 | I149: 0 | J149: 0 | K149: 0 | L149: 0 | M149: 0 | N149: 0 | O149: 0 | P149: 0 | Q149: 0 | R149: 0 | S149: 0 | T149: 0 | U149: 0
A150: % of Interest Only Mortgages (optional switching to repayment) | B150: 0 | C150: 0 | D150: 0 | E150: 0 | F150: 0 | G150: 0 | H150: 0 | I150: 0 | J150: 0 | K150: 0 | L150: 0 | M150: 0 | N150: 0 | O150: 0 | P150: 0 | Q150: 0 | R150: 0 | S150: 0 | T150: 0 | U150: 0
A151: % of Repayment Mortgages | B151: 0 | C151: 0 | D151: 0 | E151: 0 | F151: 0 | G151: 0 | H151: 0 | I151: 0 | J151: 0 | K151: 0 | L151: 0 | M151: 0 | N151: 0 | O151: 0 | P151: 0 | Q151: 0 | R151: 0 | S151: 0 | T151: 0 | U151: 0
A152: % of Mortgages in London | B152: 0 | C152: 0 | D152: 0 | E152: 0 | F152: 0 | G152: 0 | H152: 0 | I152: 0 | J152: 0 | K152: 0 | L152: 0 | M152: 0 | N152: 0 | O152: 0 | P152: 0 | Q152: 0 | R152: 0 | S152: 0 | T152: 0 | U152: 0
A153: % of Mortgages in the South East | B153: 0 | C153: 0 | D153: 0 | E153: 0 | F153: 0 | G153: 0 | H153: 0 | I153: 0 | J153: 0 | K153: 0 | L153: 0 | M153: 0 | N153: 0 | O153: 0 | P153: 0 | Q153: 0 | R153: 0 | S153: 0 | T153: 0 | U153: 0
A154: % of Owner Occupied Mortgages | B154: 0 | C154: 0 | D154: 0 | E154: 0 | F154: 0 | G154: 0 | H154: 0 | I154: 0 | J154: 0 | K154: 0 | L154: 0 | M154: 0 | N154: 0 | O154: 0 | P154: 0 | Q154: 0 | R154: 0 | S154: 0 | T154: 0 | U154: 0
A155: % of Investment Home Loans - Professional Landlords | B155: 0 | C155: 0 | D155: 0 | E155: 0 | F155: 0 | G155: 0 | H155: 0 | I155: 0 | J155: 0 | K155: 0 | L155: 0 | M155: 0 | N155: 0 | O155: 0 | P155: 0 | Q155: 0 | R155: 0 | S155: 0 | T155: 0 | U155: 0
A156: % of Investment Home Loans - Emerging Professional Landlords | B156: 0 | C156: 0 | D156: 0 | E156: 0 | F156: 0 | G156: 0 | H156: 0 | I156: 0 | J156: 0 | K156: 0 | L156: 0 | M156: 0 | N156: 0 | O156: 0 | P156: 0 | Q156: 0 | R156: 0 | S156: 0 | T156: 0 | U156: 0
A157: Weighted Average Interest Coverage Ratio (calculated at the origination date) | B157: 0 | C157: 0 | D157: 0 | E157: 0 | F157: 0 | G157: 0 | H157: 0 | I157: 0 | J157: 0 | K157: 0 | L157: 0 | M157: 0 | N157: 0 | O157: 0 | P157: 0 | Q157: 0 | R157: 0 | S157: 0 | T157: 0 | U157: 0
A158: Number of Properties in Possession | B158: 0 | C158: 0 | D158: 0 | E158: 0 | F158: 0 | G158: 0 | H158: 0 | I158: 0 | J158: 0 | K158: 0 | L158: 0 | M158: 0 | N158: 0 | O158: 0 | P158: 0 | Q158: 0 | R158: 0 | S158: 0 | T158: 0 | U158: 0
A159: Appointment of a Receiver of Rent | B159: 0 | C159: 0 | D159: 0 | E159: 0 | F159: 0 | G159: 0 | H159: 0 | I159: 0 | J159: 0 | K159: 0 | L159: 0 | M159: 0 | N159: 0 | O159: 0 | P159: 0 | Q159: 0 | R159: 0 | S159: 0 | T159: 0 | U159: 0
A160: Paragon Bank Quarterly Losses | B160: 0 | C160: 0 | D160: 0 | E160: 0 | F160: 0 | G160: 0 | H160: 0 | I160: 0 | J160: 0 | K160: 0 | L160: 0 | M160: 0 | N160: 0 | O160: 0 | P160: 0 | Q160: 0 | R160: 0 | S160: 0 | T160: 0 | U160: 0
A161: Arrears excluding Receiver of Rent and Possession Cases
A162: Performing Loans | B162: 0 | C162: 0 | D162: 0 | E162: 0 | F162: 0 | G162: 0 | H162: 0 | I162: 0 | J162: 0 | K162: 0 | L162: 0 | M162: 0 | N162: 0 | O162: 0 | P162: 0 | Q162: 0 | R162: 0 | S162: 0 | T162: 0 | U162: 0
A163: >1 to 2 months arrears | B163: 0 | C163: 0 | D163: 0 | E163: 0 | F163: 0 | G163: 0 | H163: 0 | I163: 0 | J163: 0 | K163: 0 | L163: 0 | M163: 0 | N163: 0 | O163: 0 | P163: 0 | Q163: 0 | R163: 0 | S163: 0 | T163: 0 | U163: 0
A164: >2 to 3 months arrears | B164: 0 | C164: 0 | D164: 0 | E164: 0 | F164: 0 | G164: 0 | H164: 0 | I164: 0 | J164: 0 | K164: 0 | L164: 0 | M164: 0 | N164: 0 | O164: 0 | P164: 0 | Q164: 0 | R164: 0 | S164: 0 | T164: 0 | U164: 0
A165: >3 months arrears | B165: 0 | C165: 0 | D165: 0 | E165: 0 | F165: 0 | G165: 0 | H165: 0 | I165: 0 | J165: 0 | K165: 0 | L165: 0 | M165: 0 | N165: 0 | O165: 0 | P165: 0 | Q165: 0 | R165: 0 | S165: 0 | T165: 0 | U165: 0
A166: Total | B166: =SUM(B162:B165) -> 0 | C166: 0 | D166: 0 | E166: 0 | F166: 0 | G166: 0 | H166: =SUM(H162:H165) -> 0 | I166: 0 | J166: =SUM(J162:J165) -> 0 | K166: 0 | L166: =SUM(L162:L165) -> 0 | M166: 0 | N166: =SUM(N162:N165) -> 0 | O166: 0 | P166: =SUM(P162:P165) -> 0 | Q166: 0 | R166: =SUM(R162:R165) -> 0 | S166: 0 | T166: =SUM(T162:T165) -> 0 | U166: 0

Sheet Graphs
K2: PARAGON MORTGAGES (NO.25) PLC
